fUSD/lending_fUSD_20240903
["ID","MTS","AMOUNT","RATE_DAILY","PERIOD"]
[337058817,1725400272065,-1619.01,0.00013787,2]
[337058818,1725400272074,-1969.53,0.00013787,2]
[337058819,1725400272083,-1969.53,0.00013787,2]
[337058820,1725400272092,-12707.11,0.00013787,2]
[337058821,1725400272102,-12707.11,0.00013787,2]
[337058822,1725400272111,-500.0,0.00013787,2]
[337058823,1725400272120,-500.0,0.00013787,2]
[337058824,1725400272129,-655.24,0.00013787,2]
[337058825,1725400272138,-655.24,0.00013787,2]
[337058826,1725400272147,-500.0,0.00013787,2]
[337058827,1725400272156,-500.0,0.00013787,2]
[337058828,1725400272166,-1668.35,0.00013787,2]
[337058829,1725400272175,-842.78,0.00013787,2]
[337058830,1725400272184,-500.0,0.00013787,2]
[337058831,1725400272194,-500.0,0.00013787,2]
[337058832,1725400272203,-37122.41,0.00013787,2]
[337058833,1725400272212,-1167.24,0.00013787,2]
[337058834,1725400272221,-37122.41,0.00013787,2]
[337058835,1725400272230,-1946.22,0.00013787,2]
[337058836,1725400272239,-1946.22,0.00013787,2]
[337058837,1725400272248,-2189.75,0.00013787,2]
[337058838,1725400272257,-2189.75,0.00013787,2]
[337058839,1725400272266,-500.0,0.00013787,2]
[337058840,1725400272275,-500.0,0.00013787,2]
[337058841,1725400272285,-3836.89,0.00013787,2]
[337058842,1725400272295,-971.98,0.00013787,2]
[337058843,1725400272304,-971.98,0.00013787,2]
[337058844,1725400272313,-1987.06,0.00013787,2]
[337058845,1725400272322,-1066.47,0.00013787,2]
[337058846,1725400272331,-1371.78,0.00013787,2]
[337058847,1725400272340,-2710.93,0.00013787,2]
[337058848,1725400272349,-2710.93,0.00013787,2]
[337058849,1725400272358,-1978.98,0.00013787,2]
[337058850,1725400272367,-1978.98,0.00013787,2]
[337058851,1725400272376,-994.43,0.00013787,2]
[337058852,1725400272386,-8859.13,0.00013787,2]
[337058853,1725400272395,-8859.13,0.00013787,2]
[337058854,1725400272404,-1400.93,0.00013787,2]
[337058855,1725400272414,-1064.69,0.00013787,2]
[337058856,1725400272425,-1064.69,0.00013787,2]
[337058857,1725400272434,-500.0,0.00013787,2]
[337058858,1725400272443,-500.0,0.00013787,2]
[337058859,1725400272452,-815.31,0.00013787,2]
[337058860,1725400272461,-815.31,0.00013787,2]
[337058861,1725400272470,-2699.11,0.00013787,2]
[337058862,1725400272479,-2699.11,0.00013787,2]
[337058863,1725400272489,-6705.01,0.00013787,2]
[337058864,1725400272498,-607.08,0.00013787,2]
[337058865,1725400272507,-500.0,0.00013787,2]
[337058866,1725400272516,-607.08,0.00013787,2]
[337058867,1725400272525,-500.0,0.00013787,2]
[337058868,1725400272535,-500.0,0.00013787,2]
[337058869,1725400272542,-500.0,0.00013787,2]
[337058870,1725400272551,-616.66633096,0.00013787,2]
[337058871,1725400272560,-545.71,0.00013787,2]
[337058872,1725400272569,-3942.48,0.00013787,2]
[337058873,1725400272579,-500.0,0.00013787,2]
[337058874,1725400272591,-500.0,0.00013787,2]
[337058875,1725400272600,-545.71,0.00013787,2]
[337058876,1725400272611,-4297.84,0.00013787,2]
[337058877,1725400272621,-4297.84,0.00013787,2]
[337058878,1725400272631,-1449.7,0.00013787,2]
[337058879,1725400272641,-500.0,0.00013787,2]
[337058880,1725400272656,-500.0,0.00013787,2]
[337058881,1725400272666,-1276.17,0.00013787,2]
[337058882,1725400272675,-1276.17,0.00013787,2]
[337058883,1725400272684,-735.41,0.00013787,2]
[337058884,1725400272693,-735.41,0.00013787,2]
[337058885,1725400272703,-3268.74,0.00013787,2]
[337058886,1725400272713,-3268.74,0.00013787,2]
[337058887,1725400272725,-500.0,0.00013787,2]
[337058888,1725400272734,-739.26,0.00013787,2]
[337058889,1725400272743,-500.0,0.00013787,2]
[337058890,1725400272752,-739.26,0.00013787,2]
[337058891,1725400272762,-1721.95,0.00013787,2]
[337058892,1725400272772,-1721.95,0.00013787,2]
[337058893,1725400272782,-3130.22,0.00013787,2]
[337058894,1725400272793,-500.0,0.00013787,2]
[337058895,1725400272804,-550.99,0.00013787,2]
[337058896,1725400272815,-550.99,0.00013787,2]
[337058897,1725400272825,-21465.69,0.00013787,2]
[337058898,1725400272835,-21465.69,0.00013787,2]
[337058899,1725400272845,-8123.02,0.00013787,2]
[337058900,1725400272855,-500.0,0.00013787,2]
[337058901,1725400272865,-8123.02,0.00013787,2]
[337058902,1725400272874,-752.03,0.00013787,2]
[337058903,1725400272883,-752.03,0.00013787,2]
[337058904,1725400272894,-1846.76,0.00013787,2]
[337058905,1725400272903,-1846.76,0.00013787,2]
[337058906,1725400272914,-500.0,0.00013787,2]
[337058907,1725400272926,-1416.75,0.00013787,2]
[337058908,1725400272936,-1416.75,0.00013787,2]
[337058909,1725400272945,-3170.09,0.00013787,2]
[337058910,1725400272956,-3170.09,0.00013787,2]
[337058911,1725400272966,-2159.36,0.00013787,2]
[337058912,1725400272975,-2159.36,0.00013787,2]
[337058913,1725400272985,-500.0,0.00013787,2]
[337058914,1725400272995,-500.0,0.00013787,2]
[337058915,1725400273004,-500.0,0.00013787,2]
[337058916,1725400273014,-500.0,0.00013787,2]
[337058917,1725400273025,-500.0,0.00013787,2]
[337058918,1725400273035,-840.82,0.00013787,2]
[337058919,1725400273045,-948.34,0.00013787,2]
[337058920,1725400273055,-948.34,0.00013787,2]
[337058921,1725400273065,-1955.73,0.00013787,2]
[337058922,1725400273074,-500.0,0.00013787,2]
[337058923,1725400273084,-500.0,0.00013787,2]
[337058924,1725400273094,-500.0,0.00013787,2]
[337058925,1725400273103,-3204.74,0.00013787,2]
[337058926,1725400273113,-500.0,0.00013787,2]
[337058927,1725400273122,-3204.74,0.00013787,2]
[337058928,1725400273131,-500.0,0.00013787,2]
[337058929,1725400273141,-500.0,0.00013787,2]
[337058930,1725400273150,-500.0,0.00013787,2]
[337058931,1725400273159,-500.0,0.00013787,2]
[337058932,1725400273170,-500.0,0.00013787,2]
[337058933,1725400273179,-500.0,0.00013787,2]
[337058934,1725400273189,-4068.02,0.00013787,2]
[337058935,1725400273198,-4068.02,0.00013787,2]
[337058936,1725400273207,-2371.43,0.00013787,2]
[337058937,1725400273217,-500.0,0.00013787,2]
[337058938,1725400273226,-500.0,0.00013787,2]
[337058939,1725400273236,-500.0,0.00013787,2]
[337058940,1725400273246,-1315.31,0.00013787,2]
[337058941,1725400273255,-500.0,0.00013787,2]
[337058942,1725400273265,-516.2,0.00013787,2]
[337058943,1725400273275,-516.2,0.00013787,2]
[337058944,1725400273284,-500.0,0.00013787,2]
[337058945,1725400273294,-3487.55,0.00013787,2]
[337058946,1725400273303,-500.0,0.00013787,2]
[337058947,1725400273313,-3487.55,0.00013787,2]
[337058948,1725400273323,-500.0,0.00013787,2]
[337058949,1725400273332,-500.0,0.00013787,2]
[337058950,1725400273341,-500.0,0.00013788,2]
[337058951,1725400273350,-500.0,0.00013788,2]
[337058952,1725400273359,-793.3420177,0.00013788,2]
[337058953,1725400273368,-500.0,0.00013788,2]
[337058954,1725400273378,-500.0,0.00013788,2]
[337058955,1725400273387,-500.0,0.00013789,2]
[337058956,1725400273397,-500.0,0.00013789,2]
[337058957,1725400273406,-500.0,0.00013789,2]
[337058958,1725400273415,-500.0,0.00013789,2]
[337058959,1725400273425,-500.0,0.00013789,2]
[337058960,1725400273434,-660.36,0.00013789,2]
[337058961,1725400273443,-500.0,0.00013789,2]
[337058962,1725400273453,-500.0,0.00013789,2]
[337058963,1725400273462,-931.14,0.00013789,2]
[337058964,1725400273470,-952.82,0.00013789,2]
[337058965,1725400273479,-524.35,0.00013789,2]
[337058966,1725400273489,-1396.48,0.00013789,2]
[337058967,1725400273499,-2718.35,0.00013789,2]
[337058968,1725400273508,-500.0,0.00013789,2]
[337058969,1725400273517,-6338.04,0.00013789,2]
[337058970,1725400273527,-500.0,0.00013789,2]
[337058971,1725400273537,-2191.73,0.00013789,2]
[337058972,1725400273546,-2886.04,0.00013789,2]
[337058973,1725400273556,-2180.0,0.00013789,2]
[337058974,1725400273565,-5307.94,0.00013789,2]
[337058975,1725400273575,-1127.34,0.00013789,2]
[337058976,1725400273585,-1149.45,0.00013789,2]
[337058977,1725400273594,-500.0,0.00013789,2]
[337058978,1725400273604,-1619.01,0.00013789,2]
[337058979,1725400273613,-1668.35,0.00013789,2]
[337058980,1725400273623,-842.78,0.00013789,2]
[337058981,1725400273632,-1167.24,0.00013789,2]
[337058982,1725400273642,-3836.89,0.00013789,2]
[337058983,1725400273651,-1987.06,0.00013789,2]
[337058984,1725400273660,-1066.47,0.00013789,2]
[337058985,1725400273669,-1371.78,0.00013789,2]
[337058986,1725400273679,-994.43,0.00013789,2]
[337058987,1725400273688,-1400.93,0.00013789,2]
[337058988,1725400273697,-6705.01,0.00013789,2]
[337058989,1725400273707,-500.0,0.00013789,2]
[337058990,1725400273718,-3942.48,0.00013789,2]
[337058991,1725400273728,-1449.7,0.00013789,2]
[337058992,1725400273737,-3130.22,0.00013789,2]
[337058993,1725400273747,-500.0,0.00013789,2]
[337058994,1725400273756,-500.0,0.00013789,2]
[337058995,1725400273766,-500.0,0.00013789,2]
[337058996,1725400273775,-500.0,0.00013789,2]
[337058997,1725400273785,-840.82,0.00013789,2]
[337058998,1725400273795,-1955.73,0.00013789,2]
[337058999,1725400273804,-2371.43,0.00013789,2]
[337059000,1725400273814,-1315.31,0.00013789,2]
[337059001,1725400273823,-209.96855528,0.0001379,2]
[337059002,1725400273833,-1145.50176611,0.0001379,2]
[337059003,1725400273842,-2468.26,0.0001379,2]
[337059004,1725400273851,-3966.86,0.0001379,2]
[337059005,1725400273861,-3336.2,0.0001379,2]
[337059006,1725400273870,-17290.59,0.0001379,2]
[337059007,1725400273879,-500.0,0.0001379,2]
[337059008,1725400273891,-680.05,0.0001379,2]
[337059009,1725400273901,-735.77,0.0001379,2]
[337059010,1725400273911,-554.56,0.0001379,2]
[337059011,1725400273922,-1716.24,0.0001379,2]
[337059012,1725400273935,-12707.11,0.0001379,2]
[337059013,1725400273946,-37122.41,0.0001379,2]
[337059014,1725400273957,-8859.13,0.0001379,2]
[337059015,1725400273967,-2699.11,0.0001379,2]
[337059016,1725400273979,-739.26,0.0001379,2]
[337059017,1725400273991,-21465.69,0.0001379,2]
[337059018,1725400274001,-1416.75,0.0001379,2]
[337059019,1725400274012,-3204.74,0.0001379,2]
[337059020,1725400274022,-4068.02,0.0001379,2]
[337059021,1725400274032,-500.0,0.0001379,2]
[337059022,1725400274042,-2000.0,0.00013791,2]
[337059023,1725400274052,-200.0,0.00013791,2]
[337059024,1725400274061,-5800.0,0.00013791,2]
[337059025,1725400274071,-5800.0,0.000138,2]
[337059026,1725400274080,-1273.66583201,0.000138,2]
[337059027,1725400274090,-185.60586849,0.00013808,2]
[337059028,1725400274100,-200.0,0.0001386,2]
[337059029,1725400274110,-150.0,0.00013873,2]
[337059030,1725400274119,-12496.7126666,0.00013874,2]
[337059031,1725400274129,-1895.1130485,0.00013879,2]
[337059032,1725400274138,-1100.69782956,0.0001388,2]
[337059033,1725400274148,-6521.81499075,0.0001388,2]
[337059034,1725400274158,-500.0,0.00013882,2]
[337059035,1725400274168,-500.0,0.00013882,2]
[337059036,1725400274178,-500.0,0.00013882,2]
[337059037,1725400274188,-500.0,0.00013882,2]
[337059038,1725400274198,-500.0,0.00013882,2]
[337059039,1725400274207,-660.36,0.00013882,2]
[337059040,1725400274217,-500.0,0.00013882,2]
[337059041,1725400274227,-500.0,0.00013882,2]
[337059042,1725400274237,-931.14,0.00013882,2]
[337059043,1725400274247,-952.82,0.00013882,2]
[337059044,1725400274256,-524.35,0.00013882,2]
[337059045,1725400274266,-1396.48,0.00013882,2]
[337059046,1725400274276,-2718.35,0.00013882,2]
[337059047,1725400274286,-500.0,0.00013882,2]
[337059048,1725400274296,-6338.04,0.00013882,2]
[337059049,1725400274305,-500.0,0.00013882,2]
[337059050,1725400274315,-2191.73,0.00013882,2]
[337059051,1725400274325,-2886.04,0.00013882,2]
[337059052,1725400274335,-2180.0,0.00013882,2]
[337059053,1725400274345,-5307.94,0.00013882,2]
[337059054,1725400274355,-1127.34,0.00013882,2]
[337059055,1725400274364,-1149.45,0.00013882,2]
[337059056,1725400274374,-500.0,0.00013882,2]
[337059057,1725400274384,-1619.01,0.00013882,2]
[337059058,1725400274395,-1668.35,0.00013882,2]
[337059059,1725400274407,-842.78,0.00013882,2]
[337059060,1725400274416,-1167.24,0.00013882,2]
[337059061,1725400274428,-3836.89,0.00013882,2]
[337059062,1725400274438,-1987.06,0.00013882,2]
[337059063,1725400274447,-1066.47,0.00013882,2]
[337059064,1725400274457,-1371.78,0.00013882,2]
[337059065,1725400274466,-994.43,0.00013882,2]
[337059066,1725400274476,-1400.93,0.00013882,2]
[337059067,1725400274486,-6705.01,0.00013882,2]
[337059068,1725400274496,-500.0,0.00013882,2]
[337059069,1725400274506,-3942.48,0.00013882,2]
[337059070,1725400274516,-1449.7,0.00013882,2]
[337059071,1725400274526,-3130.22,0.00013882,2]
[337059072,1725400274536,-500.0,0.00013882,2]
[337059073,1725400274546,-500.0,0.00013882,2]
[337059074,1725400274556,-367.64300083,0.00013882,2]
[337059075,1725400274566,-500.0,0.00013882,2]
[337059076,1725400274577,-840.82,0.00013882,2]
[337059077,1725400274587,-1955.73,0.00013882,2]
[337059078,1725400274596,-2371.43,0.00013882,2]
[337059079,1725400274607,-1315.31,0.00013882,2]
[337059080,1725400274617,-1895.1130485,0.00013883,2]
[337059081,1725400274626,-1895.1130485,0.00013884,2]
[337059082,1725400274638,-5685.3391455,0.00013884,2]
[337059083,1725400274648,-500.0,0.00013885,2]
[337059084,1725400274657,-500.0,0.00013885,2]
[337059085,1725400274850,-1090.29,0.00013885,2]
[337059086,1725400274860,-1090.29,0.00013885,2]
[337059087,1725400274869,-3148.4,0.00013885,2]
[337059088,1725400274879,-3148.4,0.00013885,2]
[337059089,1725400274888,-1303.88,0.00013885,2]
[337059090,1725400274898,-1734.81,0.00013885,2]
[337059091,1725400274907,-556.64,0.00013885,2]
[337059092,1725400274917,-500.0,0.00013885,2]
[337059093,1725400274926,-500.0,0.00013885,2]
[337059094,1725400274936,-1946.22,0.00013885,2]
[337059095,1725400274945,-815.31,0.00013885,2]
[337059096,1725400274954,-500.0,0.00013885,2]
[337059097,1725400274964,-1276.17,0.00013885,2]
[337059098,1725400274973,-1276.17,0.00013885,2]
[337059099,1725400274982,-1721.95,0.00013885,2]
[337059100,1725400274991,-8123.02,0.00013885,2]
[337059101,1725400275000,-8123.02,0.00013885,2]
[337059102,1725400275010,-3170.09,0.00013885,2]
[337059103,1725400275020,-3170.09,0.00013885,2]
[337059104,1725400275029,-2159.36,0.00013885,2]
[337059105,1725400275039,-270.26477817,0.00013885,2]
[337059106,1725400275048,-948.34,0.00013885,2]
[337059107,1725400275057,-948.34,0.00013885,2]
[337059108,1725400275066,-500.0,0.00013885,2]
[337059109,1725400275076,-500.0,0.00013885,2]
[337059110,1725400275085,-500.0,0.00013885,2]
[337059111,1725400275094,-500.0,0.00013885,2]
[337059112,1725400275103,-516.2,0.00013885,2]
[337059113,1725400275112,-516.2,0.00013885,2]
[337059114,1725400275121,-3487.55,0.00013885,2]
[337059115,1725400275130,-3487.55,0.00013885,2]
[337059116,1725400275140,-1895.1130485,0.00013885,2]
[337059117,1725400275149,-1111253.60538733,0.00013886,2]
[337059118,1725400275159,-500.0,0.00013886,2]
[337059119,1725400275168,-500.0,0.00013886,2]
[337059120,1725400275177,-500.0,0.00013886,2]
[337059121,1725400275186,-500.0,0.00013886,2]
[337059122,1725400275195,-500.0,0.00013886,2]
[337059123,1725400275204,-500.0,0.00013886,2]
[337059124,1725400275213,-500.0,0.00013886,2]
[337059125,1725400275223,-500.0,0.00013886,2]
[337059126,1725400275232,-500.0,0.00013886,2]
[337059127,1725400275241,-500.0,0.00013886,2]
[337059128,1725400275250,-500.0,0.00013886,2]
[337059129,1725400275259,-500.0,0.00013886,2]
[337059130,1725400275269,-500.0,0.00013886,2]
[337059131,1725400275278,-500.0,0.00013886,2]
[337059132,1725400275287,-500.0,0.00013886,2]
[337059133,1725400275296,-500.0,0.00013886,2]
[337059134,1725400275306,-500.0,0.00013886,2]
[337059135,1725400275314,-500.0,0.00013886,2]
[337059136,1725400275324,-500.0,0.00013886,2]
[337059137,1725400275333,-500.0,0.00013886,2]
[337059138,1725400275342,-500.0,0.00013886,2]
[337059139,1725400275351,-500.0,0.00013886,2]
[337059140,1725400275360,-500.0,0.00013886,2]
[337059141,1725400275370,-500.0,0.00013886,2]
[337059142,1725400275379,-500.0,0.00013886,2]
[337059143,1725400275389,-660.36,0.00013886,2]
[337059144,1725400275398,-660.36,0.00013886,2]
[337059145,1725400275408,-660.36,0.00013886,2]
[337059146,1725400275419,-660.36,0.00013886,2]
[337059147,1725400275429,-660.36,0.00013886,2]
[337059148,1725400275440,-500.0,0.00013886,2]
[337059149,1725400275450,-500.0,0.00013886,2]
[337059150,1725400275460,-500.0,0.00013886,2]
[337059151,1725400275470,-500.0,0.00013886,2]
[337059152,1725400275480,-500.0,0.00013886,2]
[337059153,1725400275489,-500.0,0.00013886,2]
[337059154,1725400275498,-500.0,0.00013886,2]
[337059155,1725400275507,-500.0,0.00013886,2]
[337059156,1725400275516,-500.0,0.00013886,2]
[337059157,1725400275526,-500.0,0.00013886,2]
[337059158,1725400275536,-3923.91,0.00013886,2]
[337059159,1725400275545,-931.14,0.00013886,2]
[337059160,1725400275554,-931.14,0.00013886,2]
[337059161,1725400275563,-931.14,0.00013886,2]
[337059162,1725400275572,-931.14,0.00013886,2]
[337059163,1725400275581,-931.14,0.00013886,2]
[337059164,1725400275590,-3375.99,0.00013886,2]
[337059165,1725400275599,-952.82,0.00013886,2]
[337059166,1725400275609,-952.82,0.00013886,2]
[337059167,1725400275619,-952.82,0.00013886,2]
[337059168,1725400275630,-952.82,0.00013886,2]
[337059169,1725400275640,-952.82,0.00013886,2]
[337059170,1725400275653,-500.0,0.00013886,2]
[337059171,1725400275663,-500.0,0.00013886,2]
[337059172,1725400275672,-500.0,0.00013886,2]
[337059173,1725400275683,-500.0,0.00013886,2]
[337059174,1725400275693,-500.0,0.00013886,2]
[337059175,1725400275702,-500.0,0.00013886,2]
[337059176,1725400275712,-500.0,0.00013886,2]
[337059177,1725400275723,-500.0,0.00013886,2]
[337059178,1725400275732,-500.0,0.00013886,2]
[337059179,1725400275741,-500.0,0.00013886,2]
[337059180,1725400275750,-578.39703194,0.00013886,2]
[337059181,1725400275760,-3083.27,0.00013886,2]
[337059182,1725400275769,-524.35,0.00013886,2]
[337059183,1725400275778,-524.35,0.00013886,2]
[337059184,1725400275787,-524.35,0.00013886,2]
[337059185,1725400275798,-524.35,0.00013886,2]
[337059186,1725400275808,-2800.98,0.00013886,2]
[337059187,1725400275819,-524.35,0.00013886,2]
[337059188,1725400275829,-2468.26,0.00013886,2]
[337059189,1725400275838,-2468.26,0.00013886,2]
[337059190,1725400275847,-2468.26,0.00013886,2]
[337059191,1725400275859,-2468.26,0.00013886,2]
[337059192,1725400275871,-1396.48,0.00013886,2]
[337059193,1725400275884,-1396.48,0.00013886,2]
[337059194,1725400275895,-1396.48,0.00013886,2]
[337059195,1725400275905,-1396.48,0.00013886,2]
[337059196,1725400275915,-1396.48,0.00013886,2]
[337059197,1725400275925,-2718.35,0.00013886,2]
[337059198,1725400275934,-2718.35,0.00013886,2]
[337059199,1725400275943,-2718.35,0.00013886,2]
[337059200,1725400275952,-2718.35,0.00013886,2]
[337059201,1725400275962,-2718.35,0.00013886,2]
[337059202,1725400275971,-3966.86,0.00013886,2]
[337059203,1725400275980,-3966.86,0.00013886,2]
[337059204,1725400275989,-3966.86,0.00013886,2]
[337059205,1725400275999,-3966.86,0.00013886,2]
[337059206,1725400276008,-1666.2,0.00013886,2]
[337059207,1725400276017,-1090.29,0.00013886,2]
[337059208,1725400276026,-1090.29,0.00013886,2]
[337059209,1725400276036,-1090.29,0.00013886,2]
[337059210,1725400276046,-1090.29,0.00013886,2]
[337059211,1725400276056,-1090.29,0.00013886,2]
[337059212,1725400276066,-1090.29,0.00013886,2]
[337059213,1725400276076,-1090.29,0.00013886,2]
[337059214,1725400276085,-1090.29,0.00013886,2]
[337059215,1725400276094,-1090.29,0.00013886,2]
[337059216,1725400276103,-1090.29,0.00013886,2]
[337059217,1725400276112,-1090.29,0.00013886,2]
[337059218,1725400276122,-1090.29,0.00013886,2]
[337059219,1725400276131,-1090.29,0.00013886,2]
[337059220,1725400276140,-1090.29,0.00013886,2]
[337059221,1725400276150,-3336.2,0.00013886,2]
[337059222,1725400276159,-1090.29,0.00013886,2]
[337059223,1725400276168,-1090.45394851,0.00013886,2]
[337059224,1725400276177,-1679.38,0.00013886,2]
[337059225,1725400276186,-3336.2,0.00013886,2]
[337059226,1725400276195,-3336.2,0.00013886,2]
[337059227,1725400276204,-500.0,0.00013886,2]
[337059228,1725400276213,-3336.2,0.00013886,2]
[337059229,1725400276223,-500.0,0.00013886,2]
[337059230,1725400276232,-500.0,0.00013886,2]
[337059231,1725400276241,-500.0,0.00013886,2]
[337059232,1725400276250,-500.0,0.00013886,2]
[337059233,1725400276259,-3148.4,0.00013886,2]
[337059234,1725400276268,-3148.4,0.00013886,2]
[337059235,1725400276277,-3148.4,0.00013886,2]
[337059236,1725400276286,-3148.4,0.00013886,2]
[337059237,1725400276296,-3148.4,0.00013886,2]
[337059238,1725400276305,-3148.4,0.00013886,2]
[337059239,1725400276314,-6338.04,0.00013886,2]
[337059240,1725400276324,-6338.04,0.00013886,2]
[337059241,1725400276333,-1813.17,0.00013886,2]
[337059242,1725400276342,-6338.04,0.00013886,2]
[337059243,1725400276351,-3148.4,0.00013886,2]
[337059244,1725400276360,-3148.4,0.00013886,2]
[337059245,1725400276369,-6338.04,0.00013886,2]
[337059246,1725400276378,-3148.4,0.00013886,2]
[337059247,1725400276388,-6338.04,0.00013886,2]
[337059248,1725400276397,-3148.4,0.00013886,2]
[337059249,1725400276405,-3148.4,0.00013886,2]
[337059250,1725400276414,-3148.4,0.00013886,2]
[337059251,1725400276423,-3148.4,0.00013886,2]
[337059252,1725400276433,-3148.4,0.00013886,2]
[337059253,1725400276442,-3148.4,0.00013886,2]
[337059254,1725400276451,-3148.42277779,0.00013886,2]
[337059255,1725400276461,-17290.59,0.00013886,2]
[337059256,1725400276470,-17290.59,0.00013886,2]
[337059257,1725400276479,-17290.59,0.00013886,2]
[337059258,1725400276488,-500.0,0.00013886,2]
[337059259,1725400276497,-17290.59,0.00013886,2]
[337059260,1725400276506,-500.0,0.00013886,2]
[337059261,1725400276516,-500.0,0.00013886,2]
[337059262,1725400276525,-500.0,0.00013886,2]
[337059263,1725400276534,-500.0,0.00013886,2]
[337059264,1725400276546,-500.0,0.00013886,2]
[337059265,1725400276556,-500.0,0.00013886,2]
[337059266,1725400276565,-644.05443157,0.00013886,2]
[337059267,1725400276573,-1925.41,0.00013886,2]
[337059268,1725400276582,-2191.73,0.00013886,2]
[337059269,1725400276591,-2191.73,0.00013886,2]
[337059270,1725400276602,-2191.73,0.00013886,2]
[337059271,1725400276612,-2191.73,0.00013886,2]
[337059272,1725400276622,-680.05,0.00013886,2]
[337059273,1725400276632,-2191.73,0.00013886,2]
[337059274,1725400276642,-680.05,0.00013886,2]
[337059275,1725400276651,-680.05,0.00013886,2]
[337059276,1725400276659,-680.05,0.00013886,2]
[337059277,1725400276668,-1303.88,0.00013886,2]
[337059278,1725400276677,-1303.88,0.00013886,2]
[337059279,1725400276686,-1303.88,0.00013886,2]
[337059280,1725400276695,-1303.88,0.00013886,2]
[337059281,1725400276704,-1303.88,0.00013886,2]
[337059282,1725400276713,-1303.88,0.00013886,2]
[337059283,1725400276724,-1303.88,0.00013886,2]
[337059284,1725400276733,-1303.88,0.00013886,2]
[337059285,1725400276742,-2886.04,0.00013886,2]
[337059286,1725400276750,-1303.88,0.00013886,2]
[337059287,1725400276760,-2886.04,0.00013886,2]
[337059288,1725400276769,-500.0,0.00013886,2]
[337059289,1725400276778,-1303.88,0.00013886,2]
[337059290,1725400276787,-2886.04,0.00013886,2]
[337059291,1725400276797,-2886.04,0.00013886,2]
[337059292,1725400276806,-1303.88,0.00013886,2]
[337059293,1725400276815,-2886.04,0.00013886,2]
[337059294,1725400276824,-1303.88,0.00013886,2]
[337059295,1725400276833,-735.77,0.00013886,2]
[337059296,1725400276842,-735.77,0.00013886,2]
[337059297,1725400276850,-735.77,0.00013886,2]
[337059298,1725400276859,-735.77,0.00013886,2]
[337059299,1725400276868,-1734.81,0.00013886,2]
[337059300,1725400276877,-1734.81,0.00013886,2]
[337059301,1725400276886,-2180.0,0.00013886,2]
[337059302,1725400276895,-1734.81,0.00013886,2]
[337059303,1725400276904,-2180.0,0.00013886,2]
[337059304,1725400276912,-1734.81,0.00013886,2]
[337059305,1725400276921,-2180.0,0.00013886,2]
[337059306,1725400276930,-1734.81,0.00013886,2]
[337059307,1725400276940,-2180.0,0.00013886,2]
[337059308,1725400276949,-1734.81,0.00013886,2]
[337059309,1725400276959,-2180.0,0.00013886,2]
[337059310,1725400276968,-1734.81,0.00013886,2]
[337059311,1725400276977,-1734.81,0.00013886,2]
[337059312,1725400276986,-1734.81,0.00013886,2]
[337059313,1725400276996,-1734.81,0.00013886,2]
[337059314,1725400277005,-1734.81,0.00013886,2]
[337059315,1725400277015,-1734.81,0.00013886,2]
[337059316,1725400277024,-554.56,0.00013886,2]